fUSD/lending_fUSD_20260621
["ID","MTS","AMOUNT","RATE_DAILY","PERIOD"]
[425958717,1782043893000,-500.0,0.00028767,2]
[425958713,1782043893000,-1110.81,0.00028767,2]
[425958723,1782043893000,-500.0,0.00028767,2]
[425958725,1782043893000,-1437.23,0.00028767,2]
[425958724,1782043893000,-500.0,0.00028767,2]
[425958731,1782043893000,-500.0,0.00028767,2]
[425958754,1782043893000,-500.0,0.00028767,2]
[425958791,1782043893000,-500.0,0.00028767,2]
[425958750,1782043893000,-500.0,0.00028767,2]
[425958780,1782043893000,-500.0,0.00028767,2]
[425958776,1782043893000,-587.27,0.00028767,2]
[425958784,1782043893000,-1403.01,0.00028767,2]
[425958782,1782043893000,-500.0,0.00028767,2]
[425958781,1782043893000,-500.0,0.00028767,2]
[425958786,1782043893000,-500.0,0.00028767,2]
[425958783,1782043893000,-500.0,0.00028767,2]
[425958785,1782043893000,-500.0,0.00028767,2]
[425958788,1782043893000,-500.0,0.00028767,2]
[425958779,1782043893000,-1479.07,0.00028767,2]
[425958789,1782043893000,-554.99710971,0.00028767,2]
[425958793,1782043893000,-2237.6,0.00028767,2]
[425958792,1782043893000,-545.71,0.00028767,2]
[425958794,1782043893000,-500.0,0.00028767,2]
[425958797,1782043893000,-500.0,0.00028767,2]
[425958798,1782043893000,-8712.79,0.00028767,2]
[425958796,1782043893000,-2820.15,0.00028767,2]
[425958799,1782043893000,-500.0,0.00028767,2]
[425958795,1782043893000,-4510.72,0.00028767,2]
[425958751,1782043893000,-500.0,0.00028767,2]
[425958790,1782043893000,-8534.76,0.00028767,2]
[425958778,1782043893000,-1005.92,0.00028767,2]
[425958787,1782043893000,-643.45481538,0.00028767,2]
[425958775,1782043893000,-500.0,0.00028767,2]
[425958777,1782043893000,-8981.31,0.00028767,2]
[425958753,1782043893000,-907.16,0.00028767,2]
[425958757,1782043893000,-500.0,0.00028767,2]
[425958761,1782043893000,-1143.56,0.00028767,2]
[425958760,1782043893000,-1069.33,0.00028767,2]
[425958762,1782043893000,-500.0,0.00028767,2]
[425958756,1782043893000,-953.3,0.00028767,2]
[425958758,1782043893000,-500.0,0.00028767,2]
[425958759,1782043893000,-6393.06,0.00028767,2]
[425958764,1782043893000,-500.0,0.00028767,2]
[425958773,1782043893000,-1608.89,0.00028767,2]
[425958755,1782043893000,-500.0,0.00028767,2]
[425958774,1782043893000,-500.0,0.00028767,2]
[425958768,1782043893000,-770.36,0.00028767,2]
[425958772,1782043893000,-500.0,0.00028767,2]
[425958769,1782043893000,-500.0,0.00028767,2]
[425958767,1782043893000,-500.0,0.00028767,2]
[425958770,1782043893000,-500.0,0.00028767,2]
[425958765,1782043893000,-6832.79,0.00028767,2]
[425958763,1782043893000,-500.0,0.00028767,2]
[425958766,1782043893000,-500.0,0.00028767,2]
[425958771,1782043893000,-6837.07,0.00028767,2]
[425958831,1782043894000,-13098.52,0.00028767,2]
[425958828,1782043894000,-9193.94,0.00028767,2]
[425958829,1782043894000,-254.60551309,0.00028767,2]
[425958826,1782043894000,-500.0,0.00028767,2]
[425958832,1782043894000,-542.64,0.00028767,2]
[425958833,1782043894000,-1090.99,0.00028767,2]
[425958834,1782043894000,-3570.15,0.00028767,2]
[425958830,1782043894000,-9762.8,0.00028767,2]
[425958835,1782043894000,-3953.0,0.00028767,2]
[425958836,1782043894000,-500.0,0.00028767,2]
[425958839,1782043894000,-3748.36,0.00028767,2]
[425958851,1782043894000,-500.0,0.00028767,2]
[425958843,1782043894000,-9051.47,0.00028767,2]
[425958844,1782043894000,-4546.06,0.00028767,2]
[425958837,1782043894000,-500.0,0.00028767,2]
[425958838,1782043894000,-500.0,0.00028767,2]
[425958842,1782043894000,-6743.01,0.00028767,2]
[425958840,1782043894000,-500.0,0.00028767,2]
[425958846,1782043894000,-500.0,0.00028767,2]
[425958845,1782043894000,-500.0,0.00028767,2]
[425958847,1782043894000,-741.24,0.00028767,2]
[425958848,1782043894000,-7571.98,0.00028767,2]
[425958827,1782043894000,-9379.81,0.00028767,2]
[425958841,1782043894000,-500.0,0.00028767,2]
[425958825,1782043894000,-500.0,0.00028767,2]
[425958804,1782043894000,-908.25,0.00028767,2]
[425958821,1782043894000,-2000.0,0.00028767,2]
[425958802,1782043894000,-5157.88,0.00028767,2]
[425958803,1782043894000,-500.0,0.00028767,2]
[425958852,1782043894000,-4082.48,0.00028767,2]
[425958801,1782043894000,-568.41,0.00028767,2]
[425958805,1782043894000,-500.0,0.00028767,2]
[425958800,1782043894000,-1490.46,0.00028767,2]
[425958806,1782043894000,-500.0,0.00028767,2]
[425958807,1782043894000,-694.36,0.00028767,2]
[425958813,1782043894000,-5230.31,0.00028767,2]
[425958809,1782043894000,-500.0,0.00028767,2]
[425958810,1782043894000,-4338.0,0.00028767,2]
[425958808,1782043894000,-1343.52,0.00028767,2]
[425958812,1782043894000,-500.0,0.00028767,2]
[425958811,1782043894000,-500.0,0.00028767,2]
[425958815,1782043894000,-567.61,0.00028767,2]
[425958814,1782043894000,-4706.4,0.00028767,2]
[425958816,1782043894000,-500.0,0.00028767,2]
[425958818,1782043894000,-444.18,0.00028767,2]
[425958817,1782043894000,-500.0,0.00028767,2]
[425958820,1782043894000,-3502.01,0.00028767,2]
[425958819,1782043894000,-880.84,0.00028767,2]
[425958822,1782043894000,-5756.01,0.00028767,2]
[425958823,1782043894000,-500.0,0.00028767,2]
[425958824,1782043894000,-3494.12,0.00028767,2]
[425958850,1782043894000,-8419.53,0.00028767,2]
[425958849,1782043894000,-5271.59,0.00028767,2]
[425958856,1782043894000,-3970.75,0.00028767,2]
[425958882,1782043894000,-577.03,0.00028767,2]
[425958887,1782043894000,-7027.59,0.00028767,2]
[425958891,1782043894000,-500.0,0.00028767,2]
[425958889,1782043894000,-3778.65,0.00028767,2]
[425958892,1782043894000,-500.0,0.00028767,2]
[425958883,1782043894000,-905.26,0.00028767,2]
[425958886,1782043894000,-636.91,0.00028767,2]
[425958885,1782043894000,-7580.7,0.00028767,2]
[425958884,1782043894000,-500.0,0.00028767,2]
[425958894,1782043894000,-2092.72,0.00028767,2]
[425958893,1782043894000,-4333.78,0.00028767,2]
[425958888,1782043894000,-7268.59,0.00028767,2]
[425958902,1782043894000,-500.0,0.00028767,2]
[425958896,1782043894000,-500.0,0.00028767,2]
[425958901,1782043894000,-698.41,0.00028767,2]
[425958895,1782043894000,-513.46,0.00028767,2]
[425958897,1782043894000,-504.3,0.00028767,2]
[425958898,1782043894000,-500.0,0.00028767,2]
[425958903,1782043894000,-4355.02,0.00028767,2]
[425958900,1782043894000,-500.0,0.00028767,2]
[425958904,1782043894000,-500.0,0.00028767,2]
[425958906,1782043894000,-4621.09,0.00028767,2]
[425958853,1782043894000,-1177.81,0.00028767,2]
[425958905,1782043894000,-5253.04,0.00028767,2]
[425958899,1782043894000,-8399.97,0.00028767,2]
[425958880,1782043894000,-500.0,0.00028767,2]
[425958890,1782043894000,-583.26,0.00028767,2]
[425958877,1782043894000,-9170.86,0.00028767,2]
[425958854,1782043894000,-6082.93,0.00028767,2]
[425958855,1782043894000,-500.0,0.00028767,2]
[425958872,1782043894000,-500.0,0.00028767,2]
[425958858,1782043894000,-5284.4,0.00028767,2]
[425958857,1782043894000,-3554.41,0.00028767,2]
[425958862,1782043894000,-500.0,0.00028767,2]
[425958859,1782043894000,-500.0,0.00028767,2]
[425958863,1782043894000,-500.0,0.00028767,2]
[425958861,1782043894000,-500.0,0.00028767,2]
[425958865,1782043894000,-500.0,0.00028767,2]
[425958860,1782043894000,-500.0,0.00028767,2]
[425958867,1782043894000,-8823.24,0.00028767,2]
[425958864,1782043894000,-500.0,0.00028767,2]
[425958866,1782043894000,-5634.66,0.00028767,2]
[425958879,1782043894000,-500.0,0.00028767,2]
[425958873,1782043894000,-557.99,0.00028767,2]
[425958869,1782043894000,-500.0,0.00028767,2]
[425958870,1782043894000,-500.0,0.00028767,2]
[425958876,1782043894000,-500.0,0.00028767,2]
[425958875,1782043894000,-500.0,0.00028767,2]
[425958878,1782043894000,-500.0,0.00028767,2]
[425958881,1782043894000,-500.0,0.00028767,2]
[425958871,1782043894000,-560.48,0.00028767,2]
[425958868,1782043894000,-3507.03,0.00028767,2]
[425958874,1782043894000,-11148.58,0.00028767,2]
[425958947,1782043895000,-500.0,0.00028767,2]
[425958945,1782043895000,-500.0,0.00028767,2]
[425958938,1782043895000,-4918.1,0.00028767,2]
[425958939,1782043895000,-500.0,0.00028767,2]
[425958940,1782043895000,-500.0,0.00028767,2]
[425958937,1782043895000,-1000.0,0.00028767,2]
[425958946,1782043895000,-500.0,0.00028767,2]
[425958943,1782043895000,-4939.61,0.00028767,2]
[425958941,1782043895000,-2754.08,0.00028767,2]
[425958944,1782043895000,-500.0,0.00028767,2]
[425958942,1782043895000,-500.0,0.00028767,2]
[425958960,1782043895000,-530.95,0.00028767,2]
[425958954,1782043895000,-500.0,0.00028767,2]
[425958948,1782043895000,-8710.73,0.00028767,2]
[425958958,1782043895000,-2353.75,0.00028767,2]
[425958952,1782043895000,-500.0,0.00028767,2]
[425958956,1782043895000,-4078.59,0.00028767,2]
[425958951,1782043895000,-500.0,0.00028767,2]
[425958955,1782043895000,-500.0,0.00028767,2]
[425958950,1782043895000,-500.0,0.00028767,2]
[425958957,1782043895000,-631.48,0.00028767,2]
[425958953,1782043895000,-500.0,0.00028767,2]
[425958959,1782043895000,-762.22,0.00028767,2]
[425958934,1782043895000,-500.0,0.00028767,2]
[425958949,1782043895000,-4241.73,0.00028767,2]
[425958931,1782043895000,-904.85,0.00028767,2]
[425958910,1782043895000,-500.0,0.00028767,2]
[425958930,1782043895000,-4226.28,0.00028767,2]
[425958966,1782043895000,-804.51,0.00028767,2]
[425958909,1782043895000,-699.32,0.00028767,2]
[425958912,1782043895000,-5024.57,0.00028767,2]
[425958914,1782043895000,-606.47,0.00028767,2]
[425958911,1782043895000,-4126.05,0.00028767,2]
[425958913,1782043895000,-5559.63,0.00028767,2]
[425958908,1782043895000,-500.0,0.00028767,2]
[425958907,1782043895000,-4103.82,0.00028767,2]
[425958916,1782043895000,-629.21,0.00028767,2]
[425958921,1782043895000,-500.0,0.00028767,2]
[425958923,1782043895000,-1206.67,0.00028767,2]
[425958922,1782043895000,-500.0,0.00028767,2]
[425958927,1782043895000,-810.51,0.00028767,2]
[425958925,1782043895000,-3488.29,0.00028767,2]
[425958915,1782043895000,-619.09,0.00028767,2]
[425958918,1782043895000,-15685.64,0.00028767,2]
[425958920,1782043895000,-500.0,0.00028767,2]
[425958917,1782043895000,-500.0,0.00028767,2]
[425958919,1782043895000,-1070.24,0.00028767,2]
[425958926,1782043895000,-535.14,0.00028767,2]
[425958932,1782043895000,-500.0,0.00028767,2]
[425958928,1782043895000,-2865.46,0.00028767,2]
[425958929,1782043895000,-945.48,0.00028767,2]
[425958933,1782043895000,-717.93,0.00028767,2]
[425958935,1782043895000,-500.0,0.00028767,2]
[425958936,1782043895000,-4723.87,0.00028767,2]
[425958924,1782043895000,-946.64,0.00028767,2]
[425958963,1782043895000,-1076.55,0.00028767,2]
[425958984,1782043895000,-795.83,0.00028797,7]
[425958961,1782043895000,-528.8,0.00028767,2]
[425958989,1782043895000,-161.09,0.00028814,2]
[425958996,1782043895000,-440.0,0.0002887,30]
[425958999,1782043895000,-347.0,0.0002887,30]
[425958998,1782043895000,-159.0,0.0002887,30]
[425958997,1782043895000,-157.0,0.0002887,30]
[425959007,1782043895000,-1474.0,0.00028873,2]
[425959002,1782043895000,-506.0,0.0002887,30]
[425959004,1782043895000,-160.0,0.0002887,30]
[425959003,1782043895000,-192.0,0.0002887,30]
[425959001,1782043895000,-157.0,0.0002887,30]
[425959005,1782043895000,-152.63,0.00028871,30]
[425959006,1782043895000,-154.96,0.00028871,30]
[425959008,1782043895000,-1025.33,0.00028875,30]
[425959009,1782043895000,-123794.96353055,0.0002888,60]
[425959019,1782043895000,-708252.33164743,0.00029,7]
[425959010,1782043895000,-2964.0,0.00028904,2]
[425959011,1782043895000,-1025.33,0.0002895,30]
[425959012,1782043895000,-659.17,0.00028964,2]
[425959016,1782043895000,-1069.9,0.00028986,30]
[425959015,1782043895000,-1101.37,0.00028986,30]
[425959014,1782043895000,-795.83,0.00028964,2]
[425959013,1782043895000,-796.09,0.00028964,2]
[425959018,1782043895000,-154.96,0.00028991,2]
[425959017,1782043895000,-152.63,0.00028991,2]
[425958965,1782043895000,-500.0,0.00028767,2]
[425958991,1782043895000,-1069.9,0.00028819,2]
[425958988,1782043895000,-1025.33,0.000288,30]
[425959000,1782043895000,-154.0,0.0002887,30]
[425958986,1782043895000,-927.77084688,0.000288,2]
[425958970,1782043895000,-500.0,0.00028767,2]
[425958967,1782043895000,-500.0,0.00028767,2]
[425958962,1782043895000,-598.89,0.00028767,2]
[425958993,1782043895000,-154.0,0.0002887,30]
[425958969,1782043895000,-6494.57,0.00028767,2]
[425958968,1782043895000,-500.0,0.00028767,2]
[425958972,1782043895000,-4231.47,0.00028767,2]
[425958971,1782043895000,-7023.89,0.00028767,2]
[425958978,1782043895000,-1902.38,0.00028767,2]
[425958973,1782043895000,-500.0,0.00028767,2]
[425958974,1782043895000,-1020.5,0.00028767,2]
[425958979,1782043895000,-1248.63,0.00028767,2]
[425958982,1782043895000,-659.17,0.00028797,7]
[425958964,1782043895000,-500.0,0.00028767,2]
[425958976,1782043895000,-6436.65,0.00028767,2]
[425958975,1782043895000,-500.0,0.00028767,2]
[425958981,1782043895000,-2425.93010201,0.00028767,10]
[425958980,1782043895000,-3000.0,0.00028767,10]
[425958992,1782043895000,-151.0,0.0002887,30]
[425958994,1782043895000,-151.0,0.0002887,30]
[425958995,1782043895000,-167.0,0.0002887,30]
[425958983,1782043895000,-796.09,0.00028797,7]
[425958985,1782043895000,-3388.61262222,0.000288,2]
[425958987,1782043895000,-377.59197624,0.000288,2]
[425958990,1782043895000,-1101.37,0.00028819,2]
[425958977,1782043895000,-643.09,0.00028767,2]
[425959021,1782043897000,-200.0,0.00027092,2]
[425959022,1782043897000,-6814.52,0.00027397,2]
[425959023,1782043897000,-246.61626926,0.00028767,2]
[425959020,1782043897000,-161.09,0.00025611,2]
[425959026,1782043897000,-1813.0,0.00019196,5]
[425959025,1782043897000,-216.32317309,0.00011981,2]
[425959024,1782043897000,-41703.17313652,0.00029,7]
[425959036,1782043898000,-9404.61,0.00028219,2]
[425959039,1782043898000,-742.63,0.0002863,30]
[425959037,1782043898000,-6814.52,0.00028493,2]
[425959031,1782043898000,-500.0,0.00027671,2]
[425959041,1782043898000,-742.63,0.00028653,7]
[425959027,1782043898000,-9404.61,0.00027397,2]
[425959030,1782043898000,-9404.61,0.00027671,2]
[425959035,1782043898000,-6814.52,0.00028219,2]
[425959034,1782043898000,-241.39689975,0.000282,2]
[425959029,1782043898000,-6814.52,0.00027671,2]
[425959028,1782043898000,-500.0,0.00027397,2]
[425959032,1782043898000,-6814.52,0.00027945,2]
[425959040,1782043898000,-154.7,0.0002863,2]
[425959033,1782043898000,-9404.61,0.00027945,2]
[425959042,1782043898000,-6814.52,0.00028767,2]
[425959038,1782043898000,-9404.61,0.00028493,2]
[425959054,1782043898000,-350.0,0.00027397,2]
[425959053,1782043898000,-138.32,0.00029,7]
[425959052,1782043898000,-742.63,0.00028986,30]
[425959048,1782043898000,-15000.0,0.00029,2]
[425959047,1782043898000,-147408.37,0.00029,2]
[425959051,1782043898000,-45417.5966132,0.00029,7]
[425959049,1782043898000,-263.73,0.00029,2]
[425959045,1782043898000,-170066.19816545,0.00029,7]
[425959046,1782043898000,-1428.49251846,0.00029,2]
[425959043,1782043898000,-9404.61,0.00028767,2]
[425959044,1782043898000,-742.63,0.00028819,2]
[425959050,1782043898000,-201.89,0.00029,2]
[425959055,1782043966000,200.0,0.0003,120]
[425959056,1782044021000,-454.83593547,0.0001198,2]
[425959057,1782044044000,183.015888,0.0002,120]
[425959058,1782044044000,183.015888,0.00025,120]
[425959061,1782044166000,150.0,0.00030136,120]
[425959067,1782044230000,-500.0,0.00012957,2]
[425959062,1782044230000,-150.0,0.00012253,2]
[425959064,1782044230000,-500.0,0.00012957,2]
[425959065,1782044230000,-500.0,0.00012957,2]
[425959063,1782044230000,-500.15712861,0.00012957,2]
[425959066,1782044230000,-500.0,0.00012957,2]
[425959068,1782044230000,-535.74503392,0.00012957,2]
[425959071,1782044230000,-150.0,0.00013087,2]
[425959072,1782044230000,-376.56268975,0.00013122,2]
[425959070,1782044230000,-2427.75,0.00012959,2]
[425959077,1782044230000,-500.0,0.00013178,2]
[425959074,1782044230000,-2862.87820013,0.00013123,2]
[425959075,1782044230000,-3934.68014937,0.00013125,2]
[425959073,1782044230000,-316.97208821,0.00013122,2]
[425959076,1782044230000,-562.98314359,0.00013127,2]
[425959069,1782044230000,-183.824,0.00012959,2]
[425959080,1782044231000,-985150.44756642,0.00013223,2]
[425959079,1782044231000,-150.0,0.00013222,2]
[425959078,1782044231000,-198.0,0.00013178,2]
[425959081,1782044264000,-177.90780238,0.00013127,2]
[425959082,1782044323000,1580.50325316,0.000301,120]
[425959083,1782044352000,164.714298,0.0002,120]
[425959084,1782044481000,-226.19389266,0.00013104,2]
[425959086,1782044641000,-166.66,0.000123,2]
[425959087,1782044658000,230.600018,0.0002,120]
[425959094,1782044859000,-150.0,0.00012429,2]
[425959096,1782044870000,-166.66,0.00012558,2]
[425959095,1782044870000,-1852.42,0.00012472,2]
[425959097,1782044870000,-150.0,0.00012587,2]
[425959101,1782044870000,-138.76,0.00012817,2]
[425959099,1782044870000,-1187.02,0.00012644,2]
[425959098,1782044870000,-165.14,0.00012588,2]
[425959100,1782044870000,-160.0,0.00012645,2]
[425959105,1782044899000,-166.66,0.00013076,2]
[425959106,1782044899000,-221.88046175,0.00013104,2]
[425959103,1782044899000,-160.0,0.00012647,2]
[425959104,1782044899000,-27.9,0.00012817,2]
[425959102,1782044899000,-175.42,0.00012189,2]
[425959109,1782044900000,-1698.31049334,0.00013105,2]
[425959108,1782044900000,-286.23516208,0.00013105,2]
[425959107,1782044900000,-263.59388283,0.00013104,2]
[425959116,1782044974000,-150.0,0.00011621,2]
[425959115,1782044974000,-173.03,0.00010302,2]
[425959126,1782045032000,-1178.00238394,0.00013105,2]
[425959122,1782045032000,-394.68030262,0.00012329,2]
[425959124,1782045032000,-200.0,0.0001294,2]
[425959123,1782045032000,-105.29969738,0.00012329,2]
[425959125,1782045032000,-3442.84513069,0.00013028,2]
[425959127,1782045032000,-150.0,0.00013114,2]
[425959128,1782045032000,-51161.6575321,0.00013115,2]
[425959130,1782045032000,-23527.98638052,0.00013115,2]
[425959131,1782045032000,-567.45203686,0.00013115,2]
[425959132,1782045032000,-954.64264348,0.00013115,2]
[425959133,1782045032000,-2108.94415124,0.00013115,2]
[425959134,1782045032000,-665.72995843,0.00013115,2]
[425959129,1782045032000,-280.0,0.00013115,2]
[425959156,1782045038000,-1942.2,0.00013128,2]
[425959162,1782045038000,-166.66,0.00013335,2]
[425959161,1782045038000,-984.26,0.00013214,2]
[425959158,1782045038000,-589.96393482,0.00013135,2]
[425959159,1782045038000,-184.51571798,0.00013164,2]
[425959163,1782045038000,-500.0,0.00013424,2]
[425959154,1782045038000,-1000.0,0.00013122,2]
[425959160,1782045038000,-155.31632322,0.00013164,2]
[425959155,1782045038000,-1500000.0,0.00013123,2]
[425959153,1782045038000,-1435583.13969737,0.00013115,2]
[425959152,1782045038000,-863.34147687,0.00013028,2]
[425959151,1782045038000,-728.80060957,0.00013028,2]
[425959157,1782045038000,-183.825,0.00013128,2]
[425959166,1782045038000,-292.18788061,0.00013424,2]
[425959169,1782045038000,-768.0,0.00013424,2]
[425959165,1782045038000,-150.0,0.00013424,2]
[425959164,1782045038000,-573.75876789,0.00013424,2]
[425959178,1782045038000,-768.0,0.00013424,2]
[425959177,1782045038000,-768.0,0.00013424,2]
[425959176,1782045038000,-768.0,0.00013424,2]
[425959179,1782045038000,-768.0,0.00013424,2]
[425959174,1782045038000,-768.0,0.00013424,2]
[425959180,1782045038000,-768.0,0.00013424,2]
[425959167,1782045038000,-768.0,0.00013424,2]
[425959170,1782045038000,-768.0,0.00013424,2]
[425959175,1782045038000,-768.0,0.00013424,2]
[425959172,1782045038000,-768.0,0.00013424,2]
[425959171,1782045038000,-768.0,0.00013424,2]
[425959173,1782045038000,-768.0,0.00013424,2]
[425959168,1782045038000,-768.0,0.00013424,2]
[425959223,1782045039000,-500.0,0.00013698,2]
[425959220,1782045039000,-500.0,0.00013698,2]
[425959219,1782045039000,-500.0,0.00013698,2]
[425959221,1782045039000,-500.0,0.00013698,2]
[425959217,1782045039000,-540.08,0.00013698,2]
[425959214,1782045039000,-500.0,0.00013698,2]
[425959216,1782045039000,-500.0,0.00013698,2]
[425959212,1782045039000,-500.0,0.00013698,2]
[425959213,1782045039000,-500.0,0.00013698,2]
[425959222,1782045039000,-500.0,0.00013698,2]
[425959215,1782045039000,-500.0,0.00013698,2]
[425959225,1782045039000,-500.0,0.00013698,2]
[425959235,1782045039000,-500.0,0.00013698,2]
[425959226,1782045039000,-500.0,0.00013698,2]
[425959230,1782045039000,-500.0,0.00013698,2]
[425959234,1782045039000,-500.0,0.00013698,2]
[425959229,1782045039000,-500.0,0.00013698,2]
[425959228,1782045039000,-500.0,0.00013698,2]
[425959232,1782045039000,-500.0,0.00013698,2]
[425959209,1782045039000,-500.0,0.00013698,2]
[425959227,1782045039000,-500.0,0.00013698,2]
[425959231,1782045039000,-500.0,0.00013698,2]
[425959233,1782045039000,-195.4253426,0.00013698,2]
[425959236,1782045039000,-500.0,0.00013698,2]
[425959237,1782045039000,-500.0,0.00013698,2]
[425959224,1782045039000,-500.0,0.00013698,2]
[425959210,1782045039000,-500.0,0.00013698,2]
[425959201,1782045039000,-984.26,0.00013545,2]
[425959207,1782045039000,-500.0,0.00013698,2]
[425959183,1782045039000,-768.0,0.00013424,2]
[425959186,1782045039000,-768.0,0.00013424,2]
[425959181,1782045039000,-768.0,0.00013424,2]
[425959184,1782045039000,-768.0,0.00013424,2]
[425959188,1782045039000,-768.0,0.00013424,2]
[425959187,1782045039000,-768.0,0.00013424,2]
[425959182,1782045039000,-768.0,0.00013424,2]
[425959190,1782045039000,-768.0,0.00013424,2]
[425959189,1782045039000,-768.0,0.00013424,2]
[425959191,1782045039000,-778.31122281,0.00013424,2]
[425959193,1782045039000,-500.0,0.00013426,2]
[425959195,1782045039000,-500.0,0.00013426,2]
[425959211,1782045039000,-500.0,0.00013698,2]
[425959194,1782045039000,-500.0,0.00013426,2]
[425959192,1782045039000,-500.0,0.00013426,2]
[425959198,1782045039000,-176.24424995,0.0001351,2]
[425959197,1782045039000,-501.61007117,0.00013426,2]
[425959199,1782045039000,-465.11136408,0.0001351,2]
[425959200,1782045039000,-820.51157764,0.0001351,2]
[425959202,1782045039000,-166.66,0.00013594,2]
[425959247,1782045039000,-1042.37,0.00013698,2]
[425959203,1782045039000,-6807.06,0.00013683,2]
[425959205,1782045039000,-500.0,0.00013698,2]
[425959204,1782045039000,-500.0,0.00013698,2]
[425959208,1782045039000,-500.0,0.00013698,2]
[425959206,1782045039000,-500.0,0.00013698,2]
[425959196,1782045039000,-500.0,0.00013426,2]
[425959244,1782045039000,-500.0,0.00013698,2]
[425959218,1782045039000,-500.0,0.00013698,2]
[425959239,1782045039000,-500.0,0.00013698,2]
[425959271,1782045039000,-500.0,0.00013698,2]
[425959273,1782045039000,-500.0,0.00013698,2]
[425959278,1782045039000,-500.0,0.00013699,2]
[425959274,1782045039000,-500.0,0.00013698,2]
[425959276,1782045039000,-200.0,0.00013699,2]
[425959282,1782045039000,-1806.66,0.00013784,2]
[425959275,1782045039000,-502.63850258,0.00013698,2]
[425959277,1782045039000,-500.0,0.00013699,2]
[425959279,1782045039000,-500.0,0.00013699,2]
[425959281,1782045039000,-226.67391108,0.00013699,2]
[425959280,1782045039000,-500.0,0.00013699,2]
[425959283,1782045039000,-984.26,0.00013875,2]
[425959272,1782045039000,-500.0,0.00013698,2]
[425959285,1782045039000,-250.0,0.00014,2]
[425959287,1782045039000,-1187.02,0.00014225,2]
[425959286,1782045039000,-984.26,0.00014206,2]
[425959292,1782045039000,-166.66,0.00014899,2]
[425959291,1782045039000,-592.36,0.00014594,2]
[425959289,1782045039000,-260580.7291075,0.00014514,2]
[425959290,1782045039000,-984.26,0.00014536,2]
[425959288,1782045039000,-166.66,0.00014422,2]
[425959294,1782045039000,-500.0,0.00014999,2]
[425959295,1782045039000,-500.0,0.00014999,2]
[425959293,1782045039000,-500.0,0.00014999,2]
[425959297,1782045039000,-500.0,0.00014999,2]
[425959245,1782045039000,-1042.37,0.00013698,2]
[425959284,1782045039000,-8152.82747463,0.0001399,2]
[425959269,1782045039000,-500.0,0.00013698,2]
[425959296,1782045039000,-500.0,0.00014999,2]
[425959268,1782045039000,-500.0,0.00013698,2]
[425959265,1782045039000,-500.0,0.00013698,2]
[425959241,1782045039000,-500.0,0.00013698,2]
[425959238,1782045039000,-500.0,0.00013698,2]
[425959242,1782045039000,-500.0,0.00013698,2]
[425959243,1782045039000,-500.0,0.00013698,2]
[425959246,1782045039000,-1042.37,0.00013698,2]
[425959249,1782045039000,-1042.37,0.00013698,2]
[425959248,1782045039000,-1042.37,0.00013698,2]
[425959251,1782045039000,-1042.37,0.00013698,2]
[425959250,1782045039000,-1042.37,0.00013698,2]